[Event "*** Titled Tuesday Blitz"]
[Site "Chess.com"]
[Date "2020.04.07"]
[Round "4"]
[White "Alonmindlin"]
[Black "Andro2"]
[Result "1-0"]
[WhiteElo "2668"]
[BlackElo "2418"]
[TimeControl "180+1"]
[EndTime "13:39:52 PDT"]
[Termination "Alonmindlin won by resignation"]

1. d4 {[%clk 0:03:00.9]} 1... e6 {[%clk 0:02:59]} 2. c4 {[%clk 0:03:00.5]} 2...
b6 {[%clk 0:02:59]} 3. Nc3 {[%clk 0:03:00.6]} 3... Bb7 {[%clk 0:02:59.5]} 4. Nf3
{[%clk 0:03:00.8]} 4... Bb4 {[%clk 0:02:55]} 5. e3 {[%clk 0:02:59.7]} 5... f5
{[%clk 0:02:49.7]} 6. Bd3 {[%clk 0:02:55.1]} 6... Nf6 {[%clk 0:02:49.5]} 7. O-O
{[%clk 0:02:55.5]} 7... Bxc3 {[%clk 0:02:49.8]} 8. bxc3 {[%clk 0:02:55.6]} 8...
O-O {[%clk 0:02:50.4]} 9. a4 {[%clk 0:02:52.5]} 9... Nc6 {[%clk 0:02:40.3]} 10.
Ba3 {[%clk 0:02:36.9]} 10... d6 {[%clk 0:02:39.6]} 11. d5 {[%clk 0:02:31.3]}
11... exd5 {[%clk 0:02:37.2]} 12. cxd5 {[%clk 0:02:30.8]} 12... Ne7 {[%clk
0:02:32.9]} 13. c4 {[%clk 0:02:29.1]} 13... Qe8 {[%clk 0:02:17.1]} 14. Nd4
{[%clk 0:02:24.3]} 14... Bc8 {[%clk 0:02:03.3]} 15. a5 {[%clk 0:02:22.6]} 15...
Bd7 {[%clk 0:01:52.5]} 16. Bb2 {[%clk 0:02:17.7]} 16... Ne4 {[%clk 0:01:47.1]}
17. Ne2 {[%clk 0:01:50.6]} 17... Nc5 {[%clk 0:01:44.7]} 18. Bc2 {[%clk
0:01:50.8]} 18... Ng6 {[%clk 0:01:38.6]} 19. axb6 {[%clk 0:01:43.9]} 19... axb6
{[%clk 0:01:37.7]} 20. Rxa8 {[%clk 0:01:43.8]} 20... Qxa8 {[%clk 0:01:38.1]} 21.
Qd4 {[%clk 0:01:44.7]} 21... Rf7 {[%clk 0:01:36.9]} 22. Ra1 {[%clk 0:01:44.6]}
22... Qd8 {[%clk 0:01:27.7]} 23. Ra7 {[%clk 0:01:43.1]} 23... Ne5 {[%clk
0:01:19.2]} 24. Nf4 {[%clk 0:01:34.6]} 24... Qb8 {[%clk 0:01:06.5]} 25. Ra1
{[%clk 0:01:27.7]} 25... b5 {[%clk 0:01:00.6]} 26. cxb5 {[%clk 0:01:26]} 26...
Qxb5 {[%clk 0:00:58.1]} 27. h4 {[%clk 0:01:14.9]} 27... h6 {[%clk 0:00:38.7]}
28. h5 {[%clk 0:01:12.6]} 28... Qc4 {[%clk 0:00:34.3]} 29. Ng6 {[%clk
0:01:04.6]} 29... Nxg6 {[%clk 0:00:14.2]} 30. Qxc4 {[%clk 0:01:03.5]} 1-0

[Event "*** Titled Tuesday Blitz"]
[Site "Chess.com"]
[Date "2020.04.07"]
[Round "4"]
[White "Vamostodorecto"]
[Black "Chessalary"]
[Result "1-0"]
[WhiteElo "2414"]
[BlackElo "2244"]
[TimeControl "180+1"]
[EndTime "13:40:01 PDT"]
[Termination "Vamostodorecto won by resignation"]

1. d4 {[%clk 0:03:00.9]} 1... d5 {[%clk 0:03:00]} 2. c4 {[%clk 0:03:00.1]} 2...
e6 {[%clk 0:03:00.5]} 3. Nc3 {[%clk 0:03:00]} 3... c6 {[%clk 0:03:01.1]} 4. e4
{[%clk 0:02:59.4]} 4... dxe4 {[%clk 0:03:01.5]} 5. Nxe4 {[%clk 0:03:00.2]} 5...
Bb4+ {[%clk 0:03:02.4]} 6. Bd2 {[%clk 0:03:00.2]} 6... Qxd4 {[%clk 0:03:02]} 7.
Bxb4 {[%clk 0:02:59.9]} 7... Qxe4+ {[%clk 0:03:02.6]} 8. Be2 {[%clk 0:02:59.4]}
8... Na6 {[%clk 0:03:00.5]} 9. Bf8 {[%clk 0:02:56.9]} 9... Ne7 {[%clk
0:03:00.5]} 10. Bxg7 {[%clk 0:02:49.5]} 10... Rg8 {[%clk 0:03:00.4]} 11. Bc3
{[%clk 0:02:46.1]} 11... Rxg2 {[%clk 0:02:54.1]} 12. Nf3 {[%clk 0:02:34.2]}
12... Nf5 {[%clk 0:02:34.4]} 13. Qd2 {[%clk 0:02:26.5]} 13... Bd7 {[%clk
0:02:26.3]} 14. O-O-O {[%clk 0:02:15.6]} 14... O-O-O {[%clk 0:02:26]} 15. Bf6
{[%clk 0:02:12.8]} 15... Rxf2 {[%clk 0:01:59.6]} 16. Bxd8 {[%clk 0:02:08.8]}
16... Nc5 {[%clk 0:01:57.9]} 17. Qa5 {[%clk 0:01:52.3]} 17... Na6 {[%clk
0:01:24.8]} 18. Bh4 {[%clk 0:01:37.2]} 18... Nxh4 {[%clk 0:01:21.3]} 19. Rxd7
{[%clk 0:01:30.8]} 19... b6 {[%clk 0:01:02.6]} 20. Qxa6+ {[%clk 0:01:19.2]}
20... Kxd7 {[%clk 0:01:01.3]} 21. Rd1+ {[%clk 0:01:14.9]} 21... Ke7 {[%clk
0:00:58.5]} 22. Qa3+ {[%clk 0:01:01.3]} 22... c5 {[%clk 0:00:53]} 23. Qxa7+
{[%clk 0:00:37.5]} 23... Kf6 {[%clk 0:00:52.5]} 24. Qxb6 {[%clk 0:00:28.1]}
24... Nxf3 {[%clk 0:00:34.3]} 25. Qd8+ {[%clk 0:00:27.7]} 25... Kf5 {[%clk
0:00:33.8]} 26. Bd3 {[%clk 0:00:25.9]} 1-0

[Event "*** Titled Tuesday Blitz"]
[Site "Chess.com"]
[Date "2020.04.07"]
[Round "4"]
[White "Semen16"]
[Black "Kaua18"]
[Result "1-0"]
[WhiteElo "2406"]
[BlackElo "2165"]
[TimeControl "180+1"]
[EndTime "13:40:04 PDT"]
[Termination "Semen16 won by resignation"]

1. e4 {[%clk 0:03:00.9]} 1... c5 {[%clk 0:02:59]} 2. c3 {[%clk 0:03:01]} 2...
Nf6 {[%clk 0:02:58.1]} 3. e5 {[%clk 0:03:01.4]} 3... Nd5 {[%clk 0:02:58.7]} 4.
d4 {[%clk 0:03:01.9]} 4... cxd4 {[%clk 0:02:59.4]} 5. cxd4 {[%clk 0:03:02.8]}
5... e6 {[%clk 0:03:00]} 6. Nf3 {[%clk 0:03:02.8]} 6... d6 {[%clk 0:03:00.5]} 7.
a3 {[%clk 0:03:03.2]} 7... Be7 {[%clk 0:02:58.6]} 8. Bd3 {[%clk 0:03:02.5]} 8...
Bd7 {[%clk 0:02:58.4]} 9. O-O {[%clk 0:03:01.7]} 9... Bc6 {[%clk 0:02:58.6]} 10.
Qe2 {[%clk 0:03:02]} 10... O-O {[%clk 0:02:57.9]} 11. Bd2 {[%clk 0:03:00.7]}
11... Qc7 {[%clk 0:02:53.4]} 12. Nc3 {[%clk 0:02:58.9]} 12... Nxc3 {[%clk
0:02:52.7]} 13. Bxc3 {[%clk 0:02:58.8]} 13... Rd8 {[%clk 0:02:50.7]} 14. Rfd1
{[%clk 0:02:49.2]} 14... Nd7 {[%clk 0:02:50.4]} 15. h3 {[%clk 0:02:44.6]} 15...
dxe5 {[%clk 0:02:49.4]} 16. dxe5 {[%clk 0:02:41]} 16... a6 {[%clk 0:02:36.9]}
17. Re1 {[%clk 0:02:13]} 17... Nc5 {[%clk 0:02:35.4]} 18. Bc2 {[%clk 0:02:11.6]}
18... Bb5 {[%clk 0:02:34.7]} 19. Qe3 {[%clk 0:02:06.8]} 19... Nd3 {[%clk
0:02:31.6]} 20. Red1 {[%clk 0:02:01]} 20... Nxf2 {[%clk 0:02:09.7]} 21. Qxf2
{[%clk 0:01:52.1]} 21... Bc5 {[%clk 0:02:09.2]} 22. Nd4 {[%clk 0:01:51.3]} 22...
Qxe5 {[%clk 0:02:06]} 23. Kh1 {[%clk 0:01:47.3]} 23... Rac8 {[%clk 0:01:57.6]}
24. Qh4 {[%clk 0:01:41.9]} 24... Bxd4 {[%clk 0:01:39.5]} 25. Bxd4 {[%clk
0:01:34.4]} 25... Qe2 {[%clk 0:01:10.3]} 26. Qxh7+ {[%clk 0:01:28.9]} 26... Kf8
{[%clk 0:01:10.5]} 27. Qxg7+ {[%clk 0:01:29]} 27... Ke8 {[%clk 0:01:07.9]} 28.
Qh8+ {[%clk 0:01:28.7]} 28... Kd7 {[%clk 0:01:00]} 29. Bf6+ {[%clk 0:01:27.8]}
29... Kc6 {[%clk 0:00:56.4]} 30. Bxd8 {[%clk 0:01:24.8]} 30... Bc4 {[%clk
0:00:52.8]} 31. Rac1 {[%clk 0:01:12.8]} 31... b5 {[%clk 0:00:46]} 32. b3 {[%clk
0:01:08.5]} 32... Kb7 {[%clk 0:00:29.7]} 33. bxc4 {[%clk 0:01:04.5]} 33... Rxc4
{[%clk 0:00:26.9]} 34. Qh7 {[%clk 0:00:53.5]} 34... Rxc2 {[%clk 0:00:20.1]} 35.
Qxc2 {[%clk 0:00:51.4]} 1-0

[Event "*** Titled Tuesday Blitz"]
[Site "Chess.com"]
[Date "2020.04.07"]
[Round "4"]
[White "coalescenet"]
[Black "bestluluNA"]
[Result "1-0"]
[WhiteElo "2344"]
[BlackElo "2490"]
[TimeControl "180+1"]
[EndTime "13:40:07 PDT"]
[Termination "coalescenet won on time"]

1. d4 {[%clk 0:03:00.3]} 1... Nf6 {[%clk 0:02:58.7]} 2. c4 {[%clk 0:03:00.4]}
2... e6 {[%clk 0:02:59.2]} 3. Nf3 {[%clk 0:02:59.6]} 3... d5 {[%clk 0:02:59]} 4.
Nc3 {[%clk 0:02:58.7]} 4... dxc4 {[%clk 0:02:55.8]} 5. e3 {[%clk 0:02:58.3]}
5... a6 {[%clk 0:02:51.2]} 6. a4 {[%clk 0:02:57.8]} 6... b6 {[%clk 0:02:47.6]}
7. Bxc4 {[%clk 0:02:57.2]} 7... Bb7 {[%clk 0:02:48.5]} 8. O-O {[%clk 0:02:56.7]}
8... Nbd7 {[%clk 0:02:49.2]} 9. Qe2 {[%clk 0:02:52]} 9... Bb4 {[%clk 0:02:31.2]}
10. Na2 {[%clk 0:02:40]} 10... Bd6 {[%clk 0:02:24.4]} 11. b4 {[%clk 0:02:34.9]}
11... Qe7 {[%clk 0:02:15.5]} 12. Ba3 {[%clk 0:02:21.5]} 12... O-O {[%clk
0:01:52.3]} 13. Rfb1 {[%clk 0:02:14.9]} 13... e5 {[%clk 0:01:32.1]} 14. Nxe5
{[%clk 0:01:52.1]} 14... Nxe5 {[%clk 0:01:29.7]} 15. dxe5 {[%clk 0:01:52.3]}
15... Qxe5 {[%clk 0:01:27.3]} 16. f4 {[%clk 0:01:43.7]} 16... Qf5 {[%clk
0:01:12.9]} 17. Bd3 {[%clk 0:01:38.4]} 17... Qe6 {[%clk 0:01:04.1]} 18. Bc4
{[%clk 0:01:28.8]} 18... Qe7 {[%clk 0:01:03.9]} 19. Nc3 {[%clk 0:01:23.1]} 19...
Rfe8 {[%clk 0:00:55.3]} 20. Nd1 {[%clk 0:01:11.4]} 20... Bxf4 {[%clk 0:00:42.1]}
21. b5 {[%clk 0:01:04.9]} 21... Bxe3+ {[%clk 0:00:28.4]} 22. Kh1 {[%clk
0:01:05]} 22... Qe5 {[%clk 0:00:15.3]} 23. bxa6 {[%clk 0:01:01]} 23... Bc6
{[%clk 0:00:09.7]} 24. Bb5 {[%clk 0:00:54.2]} 24... Bxb5 {[%clk 0:00:05.5]} 25.
axb5 {[%clk 0:00:53.9]} 25... Qg5 {[%clk 0:00:05]} 26. Nxe3 {[%clk 0:00:47.8]}
26... Rxe3 {[%clk 0:00:04.3]} 27. Qd2 {[%clk 0:00:47.8]} 27... Ne4 {[%clk
0:00:03.7]} 28. Qa2 {[%clk 0:00:39]} 28... Qh4 {[%clk 0:00:02.2]} 29. Kg1 {[%clk
0:00:33.4]} 1-0

[Event "*** Titled Tuesday Blitz"]
[Site "Chess.com"]
[Date "2020.04.07"]
[Round "4"]
[White "hermionegrangermagic"]
[Black "Cocaino74"]
[Result "1-0"]
[WhiteElo "2465"]
[BlackElo "2261"]
[TimeControl "180+1"]
[EndTime "13:40:08 PDT"]
[Termination "hermionegrangermagic won on time"]

1. e4 {[%clk 0:03:00.9]} 1... c5 {[%clk 0:02:59.4]} 2. Nf3 {[%clk 0:02:59.7]}
2... Nc6 {[%clk 0:02:59.2]} 3. d4 {[%clk 0:03:00.1]} 3... cxd4 {[%clk
0:03:00.1]} 4. Nxd4 {[%clk 0:03:01]} 4... g6 {[%clk 0:03:01]} 5. Nc3 {[%clk
0:03:00.7]} 5... Bg7 {[%clk 0:03:01.4]} 6. Be3 {[%clk 0:03:01.3]} 6... Nf6
{[%clk 0:03:02.1]} 7. Bc4 {[%clk 0:03:01.9]} 7... O-O {[%clk 0:03:02.5]} 8. Bb3
{[%clk 0:03:02.5]} 8... d6 {[%clk 0:03:02.2]} 9. f3 {[%clk 0:03:02]} 9... Bd7
{[%clk 0:03:02.7]} 10. Qd2 {[%clk 0:03:02.3]} 10... Na5 {[%clk 0:03:02.9]} 11.
O-O-O {[%clk 0:03:00.5]} 11... Nxb3+ {[%clk 0:03:03.2]} 12. cxb3 {[%clk
0:02:57.2]} 12... Qa5 {[%clk 0:03:00.1]} 13. h4 {[%clk 0:02:50.4]} 13... b5
{[%clk 0:02:48]} 14. Kb1 {[%clk 0:02:48.5]} 14... b4 {[%clk 0:02:47]} 15. Nce2
{[%clk 0:02:48.6]} 15... Rab8 {[%clk 0:02:34.9]} 16. h5 {[%clk 0:02:40.1]} 16...
Rb6 {[%clk 0:02:22.2]} 17. a4 {[%clk 0:02:28]} 17... Nxh5 {[%clk 0:01:35.1]} 18.
g4 {[%clk 0:02:15.7]} 18... Nf6 {[%clk 0:01:35.4]} 19. Bh6 {[%clk 0:02:12.5]}
19... Bxg4 {[%clk 0:01:19.1]} 20. Bxg7 {[%clk 0:02:09.5]} 20... Kxg7 {[%clk
0:01:15.7]} 21. Qh6+ {[%clk 0:02:04.8]} 21... Kg8 {[%clk 0:01:14.9]} 22. fxg4
{[%clk 0:02:04.9]} 22... Qe5 {[%clk 0:01:13.6]} 23. Nf5 {[%clk 0:01:29.9]} 23...
gxf5 {[%clk 0:00:25.8]} 24. g5 {[%clk 0:01:29.7]} 24... Nh5 {[%clk 0:00:03.4]}
25. Qxh5 {[%clk 0:01:18.4]} 25... Qg7 {[%clk 0:00:03]} 26. exf5 {[%clk
0:01:16.3]} 26... Rc8 {[%clk 0:00:03.5]} 27. f6 {[%clk 0:01:11.7]} 27... Qh8
{[%clk 0:00:03.1]} 28. g6 {[%clk 0:01:00.6]} 28... fxg6 {[%clk 0:00:02.2]} 29.
Qd5+ {[%clk 0:00:59.1]} 29... Kf8 {[%clk 0:00:01.9]} 30. fxe7+ {[%clk
0:00:58.9]} 30... Kxe7 {[%clk 0:00:02.1]} 31. Nd4 {[%clk 0:00:58.1]} 31... Qf6
{[%clk 0:00:01.6]} 32. Rxh7+ {[%clk 0:00:56.9]} 32... Kd8 {[%clk 0:00:01.4]} 33.
Qg8+ {[%clk 0:00:56]} 1-0

[Event "*** Titled Tuesday Blitz"]
[Site "Chess.com"]
[Date "2020.04.07"]
[Round "4"]
[White "saikrishnaReturns"]
[Black "stolencandy13"]
[Result "0-1"]
[WhiteElo "2628"]
[BlackElo "2440"]
[TimeControl "180+1"]
[EndTime "13:40:10 PDT"]
[Termination "stolencandy13 won by checkmate"]

1. e4 {[%clk 0:03:00.9]} 1... c6 {[%clk 0:03:00]} 2. d3 {[%clk 0:03:00.7]} 2...
d5 {[%clk 0:03:00.9]} 3. Nd2 {[%clk 0:03:01]} 3... e5 {[%clk 0:03:00.9]} 4. Ngf3
{[%clk 0:03:01.2]} 4... Bd6 {[%clk 0:03:01.1]} 5. g3 {[%clk 0:03:01.6]} 5... Nf6
{[%clk 0:03:01.1]} 6. Bg2 {[%clk 0:03:02]} 6... O-O {[%clk 0:03:01.7]} 7. O-O
{[%clk 0:03:02.2]} 7... Nbd7 {[%clk 0:03:02.3]} 8. c3 {[%clk 0:03:02.1]} 8... a5
{[%clk 0:03:02]} 9. a4 {[%clk 0:03:01.4]} 9... Nc5 {[%clk 0:03:01.9]} 10. Qc2
{[%clk 0:03:01.5]} 10... Re8 {[%clk 0:02:53.4]} 11. Rd1 {[%clk 0:02:54]} 11...
Bg4 {[%clk 0:02:50.7]} 12. h3 {[%clk 0:02:53]} 12... Bh5 {[%clk 0:02:50.9]} 13.
g4 {[%clk 0:02:29.8]} 13... Bg6 {[%clk 0:02:50.9]} 14. Nh4 {[%clk 0:02:30.3]}
14... Nfxe4 {[%clk 0:02:24.3]} 15. Ndf3 {[%clk 0:02:24.2]} 15... Nf6 {[%clk
0:02:12.8]} 16. Nf5 {[%clk 0:02:22.1]} 16... Bxf5 {[%clk 0:02:06.2]} 17. gxf5
{[%clk 0:02:23]} 17... e4 {[%clk 0:02:04.9]} 18. dxe4 {[%clk 0:02:21.2]} 18...
Ncxe4 {[%clk 0:01:59.5]} 19. Nd4 {[%clk 0:02:16.6]} 19... Qe7 {[%clk 0:01:55.6]}
20. Re1 {[%clk 0:02:06.8]} 20... Qc7 {[%clk 0:01:50]} 21. Be3 {[%clk 0:02:04.1]}
21... Bf4 {[%clk 0:01:45.3]} 22. c4 {[%clk 0:01:55.2]} 22... Bxe3 {[%clk
0:01:39]} 23. Rxe3 {[%clk 0:01:56.1]} 23... Qf4 {[%clk 0:01:35.9]} 24. Rae1
{[%clk 0:01:53]} 24... Nd6 {[%clk 0:01:24.5]} 25. Rxe8+ {[%clk 0:01:32]} 25...
Rxe8 {[%clk 0:01:25.4]} 26. Rxe8+ {[%clk 0:01:31.6]} 26... Ndxe8 {[%clk
0:01:21.2]} 27. Nb3 {[%clk 0:01:26.4]} 27... Qxc4 {[%clk 0:01:06.3]} 28. Qxc4
{[%clk 0:01:24.4]} 28... dxc4 {[%clk 0:01:07.2]} 29. Nxa5 {[%clk 0:01:24.9]}
29... Nd6 {[%clk 0:01:07.5]} 30. Bf1 {[%clk 0:01:13.5]} 30... Nd7 {[%clk
0:00:55.8]} 31. Bxc4 {[%clk 0:01:10.2]} 31... b6 {[%clk 0:00:49.8]} 32. Be6
{[%clk 0:00:54.8]} 32... fxe6 {[%clk 0:00:43.9]} 33. fxe6 {[%clk 0:00:55.7]}
33... bxa5 {[%clk 0:00:36]} 34. exd7 {[%clk 0:00:55.8]} 34... Nb7 {[%clk
0:00:36.2]} 35. Kh2 {[%clk 0:00:49.8]} 35... Kf7 {[%clk 0:00:36.4]} 36. b4
{[%clk 0:00:50.3]} 36... Ke7 {[%clk 0:00:32.7]} 37. bxa5 {[%clk 0:00:49.7]}
37... Nxa5 {[%clk 0:00:33.6]} 38. Kg3 {[%clk 0:00:49]} 38... Kxd7 {[%clk
0:00:34]} 39. Kh4 {[%clk 0:00:49.9]} 39... Ke6 {[%clk 0:00:33.5]} 40. Kh5 {[%clk
0:00:50.8]} 40... Kf5 {[%clk 0:00:32.1]} 41. h4 {[%clk 0:00:49.9]} 41... c5
{[%clk 0:00:26.5]} 42. f4 {[%clk 0:00:49.8]} 42... g6+ {[%clk 0:00:26.3]} 43.
Kh6 {[%clk 0:00:49.6]} 43... c4 {[%clk 0:00:26.6]} 44. Kxh7 {[%clk 0:00:49.8]}
44... c3 {[%clk 0:00:26.8]} 45. Kg7 {[%clk 0:00:49.7]} 45... c2 {[%clk
0:00:26.9]} 46. Kh6 {[%clk 0:00:50.2]} 46... c1=Q {[%clk 0:00:26.9]} 47. Kg7
{[%clk 0:00:51]} 47... Qxf4 {[%clk 0:00:27]} 48. Kh7 {[%clk 0:00:51.5]} 48...
Qxh4+ {[%clk 0:00:27.1]} 49. Kg8 {[%clk 0:00:52.4]} 49... Qxa4 {[%clk 0:00:28]}
50. Kg7 {[%clk 0:00:53.3]} 50... Qd7+ {[%clk 0:00:27.4]} 51. Kh6 {[%clk
0:00:54.2]} 51... g5 {[%clk 0:00:26.9]} 52. Kh5 {[%clk 0:00:54.2]} 52... Qh7#
{[%clk 0:00:27.4]} 0-1

[Event "*** Titled Tuesday Blitz"]
[Site "Chess.com"]
[Date "2020.04.07"]
[Round "4"]
[White "KuzubovYuriy"]
[Black "silverback96"]
[Result "1-0"]
[WhiteElo "2818"]
[BlackElo "2138"]
[TimeControl "180+1"]
[EndTime "13:40:12 PDT"]
[Termination "KuzubovYuriy won on time"]

1. d4 {[%clk 0:03:00.9]} 1... Nf6 {[%clk 0:02:59]} 2. Nf3 {[%clk 0:02:59.2]}
2... c5 {[%clk 0:02:59.3]} 3. e3 {[%clk 0:02:54.3]} 3... g6 {[%clk 0:02:58.5]}
4. dxc5 {[%clk 0:02:49.8]} 4... Qa5+ {[%clk 0:02:56]} 5. Nbd2 {[%clk 0:02:48.6]}
5... Qxc5 {[%clk 0:02:56.5]} 6. a3 {[%clk 0:02:48.4]} 6... d5 {[%clk 0:02:55.7]}
7. b4 {[%clk 0:02:47.8]} 7... Qc7 {[%clk 0:02:50.4]} 8. Bb2 {[%clk 0:02:47.4]}
8... Bg7 {[%clk 0:02:50.6]} 9. c4 {[%clk 0:02:46.5]} 9... O-O {[%clk 0:02:44]}
10. Rc1 {[%clk 0:02:45.8]} 10... Rd8 {[%clk 0:02:27.5]} 11. cxd5 {[%clk
0:02:45.2]} 11... Qd6 {[%clk 0:02:11.3]} 12. e4 {[%clk 0:02:38.1]} 12... Qf4
{[%clk 0:01:56.1]} 13. g3 {[%clk 0:02:19.9]} 13... Qg4 {[%clk 0:01:56]} 14. h3
{[%clk 0:02:18.8]} 14... Qh5 {[%clk 0:01:56.5]} 15. Be2 {[%clk 0:02:13.5]} 15...
Nxe4 {[%clk 0:01:09.8]} 16. Bxg7 {[%clk 0:01:19.5]} 16... Nxd2 {[%clk
0:00:53.3]} 17. Qxd2 {[%clk 0:00:42.2]} 17... Kxg7 {[%clk 0:00:50.8]} 18. g4
{[%clk 0:00:41.9]} 18... Qh6 {[%clk 0:00:43.9]} 19. g5 {[%clk 0:00:38.9]} 19...
Qh5 {[%clk 0:00:42.1]} 20. Rc4 {[%clk 0:00:33.1]} 20... Be6 {[%clk 0:00:06.7]}
21. Qc3+ {[%clk 0:00:28]} 21... f6 {[%clk 0:00:03.9]} 22. dxe6 {[%clk
0:00:27.3]} 1-0

[Event "*** Titled Tuesday Blitz"]
[Site "Chess.com"]
[Date "2020.04.07"]
[Round "4"]
[White "KarstenHansch"]
[Black "tgpgoat"]
[Result "1-0"]
[WhiteElo "2395"]
[BlackElo "2061"]
[TimeControl "180+1"]
[EndTime "13:40:12 PDT"]
[Termination "KarstenHansch won by checkmate"]

1. e4 {[%clk 0:03:00.9]} 1... c5 {[%clk 0:02:59.4]} 2. Nf3 {[%clk 0:03:00.4]}
2... Nc6 {[%clk 0:02:59.2]} 3. Bb5 {[%clk 0:03:00.2]} 3... g6 {[%clk 0:02:57]}
4. O-O {[%clk 0:02:57.9]} 4... Bg7 {[%clk 0:02:55.6]} 5. Re1 {[%clk 0:02:58]}
5... e5 {[%clk 0:02:54.4]} 6. Bxc6 {[%clk 0:02:56.8]} 6... dxc6 {[%clk
0:02:55.3]} 7. d3 {[%clk 0:02:56.2]} 7... Ne7 {[%clk 0:02:54.9]} 8. Be3 {[%clk
0:02:54.2]} 8... b6 {[%clk 0:02:50.4]} 9. a3 {[%clk 0:02:54.3]} 9... O-O {[%clk
0:02:49.9]} 10. b4 {[%clk 0:02:54]} 10... cxb4 {[%clk 0:02:49.1]} 11. axb4
{[%clk 0:02:54.9]} 11... Be6 {[%clk 0:02:48.9]} 12. Qc1 {[%clk 0:02:08.5]} 12...
Qc7 {[%clk 0:02:40.7]} 13. Qb2 {[%clk 0:02:03.2]} 13... Rfd8 {[%clk 0:02:30.7]}
14. Nbd2 {[%clk 0:01:52.5]} 14... Nc8 {[%clk 0:02:03.8]} 15. Ra3 {[%clk
0:01:21.7]} 15... Nd6 {[%clk 0:01:58.4]} 16. Rea1 {[%clk 0:01:20.1]} 16... Nb5
{[%clk 0:01:54.1]} 17. Ra4 {[%clk 0:01:14.7]} 17... Nd4 {[%clk 0:01:50.9]} 18.
Bxd4 {[%clk 0:01:11]} 18... exd4 {[%clk 0:01:51.8]} 19. Ng5 {[%clk 0:01:08.1]}
19... Bd7 {[%clk 0:01:46.9]} 20. Qa2 {[%clk 0:00:58.7]} 20... Be8 {[%clk
0:01:23.2]} 21. Rxa7 {[%clk 0:00:52.5]} 21... Rxa7 {[%clk 0:01:22.5]} 22. Qxa7
{[%clk 0:00:53.4]} 22... Qd6 {[%clk 0:01:21.6]} 23. Qxb6 {[%clk 0:00:43.2]}
23... Rb8 {[%clk 0:01:18.4]} 24. Qc5 {[%clk 0:00:41.5]} 24... Qxc5 {[%clk
0:01:17.3]} 25. bxc5 {[%clk 0:00:41]} 25... Rb5 {[%clk 0:01:15.7]} 26. Ra8
{[%clk 0:00:29.9]} 26... Kf8 {[%clk 0:01:15.3]} 27. Nb3 {[%clk 0:00:29.5]} 27...
Ke7 {[%clk 0:01:12.4]} 28. f4 {[%clk 0:00:26.9]} 28... Bd7 {[%clk 0:01:06.6]}
29. Ra7 {[%clk 0:00:24.2]} 29... h6 {[%clk 0:01:06]} 30. Nxf7 {[%clk 0:00:21.5]}
30... Rb8 {[%clk 0:00:51.1]} 31. Nd6 {[%clk 0:00:21.2]} 31... Rf8 {[%clk
0:00:49.9]} 32. g3 {[%clk 0:00:21.1]} 32... g5 {[%clk 0:00:49.4]} 33. f5 {[%clk
0:00:20.6]} 33... Be5 {[%clk 0:00:49]} 34. Nc4 {[%clk 0:00:20.4]} 34... Bb8
{[%clk 0:00:48.4]} 35. Rb7 {[%clk 0:00:20.6]} 35... h5 {[%clk 0:00:46]} 36. Nb6
{[%clk 0:00:20.7]} 36... h4 {[%clk 0:00:41.4]} 37. Rxd7+ {[%clk 0:00:20.3]}
37... Kf6 {[%clk 0:00:41.7]} 38. Nxd4 {[%clk 0:00:19.6]} 38... hxg3 {[%clk
0:00:41]} 39. hxg3 {[%clk 0:00:20.5]} 39... Bxg3 {[%clk 0:00:40.8]} 40. Nxc6
{[%clk 0:00:20.7]} 40... Rh8 {[%clk 0:00:39.8]} 41. Nd5# {[%clk 0:00:20.4]} 1-0

[Event "*** Titled Tuesday Blitz"]
[Site "Chess.com"]
[Date "2020.04.07"]
[Round "4"]
[White "Cukiero"]
[Black "Ariadna_Atreides"]
[Result "1-0"]
[WhiteElo "2522"]
[BlackElo "2047"]
[TimeControl "180+1"]
[EndTime "13:40:13 PDT"]
[Termination "Cukiero won on time"]

1. e4 {[%clk 0:03:00.9]} 1... c5 {[%clk 0:02:59.4]} 2. Nf3 {[%clk 0:02:57.8]}
2... d6 {[%clk 0:02:59.3]} 3. c3 {[%clk 0:02:57.9]} 3... Nf6 {[%clk 0:02:57.7]}
4. Be2 {[%clk 0:02:58]} 4... g6 {[%clk 0:02:43.2]} 5. O-O {[%clk 0:02:57.1]}
5... Bg7 {[%clk 0:02:43.5]} 6. Bb5+ {[%clk 0:02:57.6]} 6... Bd7 {[%clk
0:02:42.6]} 7. Bxd7+ {[%clk 0:02:57.2]} 7... Nfxd7 {[%clk 0:02:39]} 8. d4 {[%clk
0:02:54.3]} 8... O-O {[%clk 0:02:35.9]} 9. Nbd2 {[%clk 0:02:43.5]} 9... Nc6
{[%clk 0:02:29.3]} 10. Nc4 {[%clk 0:02:41.3]} 10... b5 {[%clk 0:02:21.4]} 11.
Ne3 {[%clk 0:02:29.2]} 11... e6 {[%clk 0:02:01.9]} 12. d5 {[%clk 0:02:25.6]}
12... exd5 {[%clk 0:01:56.9]} 13. Nxd5 {[%clk 0:02:26.5]} 13... Nb6 {[%clk
0:01:41.7]} 14. Bg5 {[%clk 0:02:20.9]} 14... f6 {[%clk 0:01:15.4]} 15. Nxb6
{[%clk 0:02:12.5]} 15... Qxb6 {[%clk 0:01:13.9]} 16. Bf4 {[%clk 0:02:07.2]}
16... Ne5 {[%clk 0:01:10.2]} 17. Qd5+ {[%clk 0:01:58.6]} 17... Kh8 {[%clk
0:01:09.2]} 18. Rfd1 {[%clk 0:01:53.6]} 18... Rad8 {[%clk 0:01:03.3]} 19. a4
{[%clk 0:01:37.6]} 19... b4 {[%clk 0:01:00.8]} 20. c4 {[%clk 0:01:31.8]} 20...
a5 {[%clk 0:00:45.1]} 21. b3 {[%clk 0:01:28.8]} 21... Rfe8 {[%clk 0:00:41.9]}
22. Ra2 {[%clk 0:01:24.3]} 22... Bf8 {[%clk 0:00:32.9]} 23. Rad2 {[%clk
0:01:18]} 23... Rd7 {[%clk 0:00:15.8]} 24. h4 {[%clk 0:00:54.7]} 24... Kg7
{[%clk 0:00:12.5]} 25. h5 {[%clk 0:00:36.5]} 25... g5 {[%clk 0:00:08.4]} 26.
Bxe5 {[%clk 0:00:35.9]} 26... fxe5 {[%clk 0:00:07.2]} 27. Nxg5 {[%clk
0:00:35.8]} 27... Kh8 {[%clk 0:00:01.7]} 28. Rd3 {[%clk 0:00:30.5]} 1-0